fUST/lending_fUST_20250619
["ID","MTS","AMOUNT","RATE_DAILY","PERIOD"]
[366537491,1750311037056,-460.0,0.00022739,6]
[366537492,1750311037065,-3841.39,0.00022739,6]
[366537493,1750311037075,-2649.21,0.00022739,6]
[366537494,1750311037084,-460.0,0.00022739,6]
[366537495,1750311037093,-460.0,0.00022739,6]
[366537496,1750311037102,-880.96,0.00022739,6]
[366537497,1750311037112,-460.0,0.00022739,6]
[366537498,1750311037121,-3370.51,0.00022739,6]
[366537499,1750311037130,-780.86,0.00022739,6]
[366537500,1750311037139,-1066.75,0.00022739,6]
[366537501,1750311037148,-491.18323926,0.00022739,6]
[366537502,1750311037158,-5142.92,0.00022739,6]
[366537503,1750311037167,-466.44,0.00022739,6]
[366537504,1750311037177,-460.0,0.00022739,6]
[366537505,1750311037185,-460.0,0.00022739,6]
[366537506,1750311037195,-396.98160023,0.00022739,6]
[366537507,1750311037204,-460.0,0.00022739,6]
[366537508,1750311037213,-1327.37,0.00022739,6]
[366537509,1750311037223,-545.54,0.00022739,6]
[366537510,1750311037233,-841.97,0.00022739,6]
[366537511,1750311037243,-460.0,0.00022739,6]
[366537512,1750311037252,-460.0,0.00022739,6]
[366537513,1750311037262,-460.0,0.00022739,6]
[366537514,1750311037271,-1500.64,0.00022739,6]
[366537515,1750311037281,-472.8,0.00022739,6]
[366537516,1750311037291,-1570.55,0.00022739,6]
[366537517,1750311037300,-1390.25,0.00022739,6]
[366537518,1750311037310,-460.0,0.00022739,6]
[366537519,1750311037319,-516.41,0.00022739,6]
[366537520,1750311037328,-460.0,0.00022739,6]
[366537521,1750311037338,-460.0,0.00022739,6]
[366537522,1750311037347,-460.0,0.00022739,6]
[366537523,1750311037356,-2267.91,0.00022739,6]
[366537524,1750311037366,-460.0,0.00022739,6]
[366537525,1750311037375,-938.2,0.00022739,6]
[366537526,1750311037384,-460.0,0.00022739,6]
[366537527,1750311037393,-708.33,0.00022739,6]
[366537528,1750311037403,-300.0,0.00022739,2]
[366537529,1750311037413,-460.0,0.00022739,6]
[366537530,1750311037422,-474.26,0.00022739,6]
[366537531,1750311037432,-886.52,0.00022739,6]
[366537532,1750311037441,-460.0,0.00022739,6]
[366537533,1750311037450,-1383.36,0.00022739,6]
[366537534,1750311037459,-460.0,0.00022739,6]
[366537535,1750311037468,-460.0,0.00022739,6]
[366537536,1750311037478,-155.4647416,0.0002274,2]
[366537537,1750311037487,-500.0,0.00022745,2]
[366537538,1750311037496,-202.42702831,0.00022745,2]
[366537539,1750311037506,-168.0,0.00022854,2]
[366537540,1750311037515,-168.0,0.00022899,2]
[366537541,1750311037525,-233.02233062,0.00022946,2]
[366537542,1750311037534,-4205.48544491,0.00023,2]
[366537544,1750311037552,-3966.85984825,0.00023,2]
[366537545,1750311037564,-2560.08447349,0.00023,2]
[366537546,1750311037575,-4965.31783291,0.00023,2]
[366537547,1750311037584,-1007.37669292,0.00023011,2]
[366537548,1750311037604,-500.0,0.0002219,2]
[366537549,1750311037614,-3992.62330708,0.00023011,2]
[366537550,1750311037624,-701.3,0.00023013,6]
[366537551,1750311037633,-460.0,0.00023013,6]
[366537552,1750311037643,-151.0,0.00023013,7]
[366537553,1750311037652,-460.0,0.00023013,6]
[366537554,1750311037661,-482.77082162,0.00023013,6]
[366537555,1750311037670,-460.0,0.00023013,6]
[366537556,1750311037690,-507.93,0.00023013,6]
[366537557,1750311037700,-460.0,0.00023013,6]
[366537558,1750311037711,-1553.48,0.00023013,6]
[366537559,1750311037723,-460.0,0.00023013,6]
[366537560,1750311037733,-686.599105,0.00023013,7]
[366537561,1750311037743,-686.599105,0.00023013,7]
[366537562,1750311037755,-764.87,0.00023013,6]
[366537563,1750311037765,-433.75614925,0.00023013,6]
[366537564,1750311037774,-460.0,0.00023013,6]
[366537565,1750311037784,-3021.55,0.00023013,6]
[366537566,1750311037794,-546.21,0.00023013,6]
[366537567,1750311037804,-460.0,0.00023013,6]
[366537568,1750311037815,-696.87,0.00023013,6]
[366537569,1750311037825,-460.0,0.00023013,6]
[366537570,1750311037834,-719.96,0.00023013,6]
[366537571,1750311037844,-663.23,0.00023013,6]
[366537572,1750311037854,-2699.02,0.00023013,6]
[366537573,1750311037864,-460.0,0.00023013,6]
[366537574,1750311037873,-460.0,0.00023013,6]
[366537576,1750311037883,-512.79,0.00023013,6]
[366537578,1750311037893,-3451.43,0.00023013,6]
[366537580,1750311037903,-2682.75,0.00023013,6]
[366537582,1750311037913,-460.0,0.00023013,6]
[366537584,1750311037922,-460.0,0.00023013,6]
[366537586,1750311037932,-556.31,0.00023013,6]
[366537588,1750311037941,-573.25,0.00023013,6]
[366537591,1750311037951,-460.0,0.00023013,6]
[366537593,1750311037961,-1794.42,0.00023013,6]
[366537595,1750311037970,-460.0,0.00023013,6]
[366537596,1750311037979,-3841.39,0.00023013,6]
[366537599,1750311037989,-2649.21,0.00023013,6]
[366537601,1750311037998,-460.0,0.00023013,6]
[366537603,1750311038007,-460.0,0.00023013,6]
[366537605,1750311038016,-880.96,0.00023013,6]
[366537607,1750311038026,-460.0,0.00023013,6]
[366537609,1750311038036,-3370.51,0.00023013,6]
[366537611,1750311038045,-780.86,0.00023013,6]
[366537614,1750311038055,-1066.75,0.00023013,6]
[366537616,1750311038064,-5142.92,0.00023013,6]
[366537619,1750311038074,-466.44,0.00023013,6]
[366537622,1750311038087,-460.0,0.00023013,6]
[366537625,1750311038096,-460.0,0.00023013,6]
[366537627,1750311038106,-460.0,0.00023013,6]
[366537630,1750311038115,-1327.37,0.00023013,6]
[366537633,1750311038125,-545.54,0.00023013,6]
[366537635,1750311038135,-841.97,0.00023013,6]
[366537637,1750311038145,-460.0,0.00023013,6]
[366537639,1750311038156,-460.0,0.00023013,6]
[366537641,1750311038169,-460.0,0.00023013,6]
[366537643,1750311038178,-1500.64,0.00023013,6]
[366537645,1750311038188,-472.8,0.00023013,6]
[366537647,1750311038197,-1570.55,0.00023013,6]
[366537649,1750311038207,-1390.25,0.00023013,6]
[366537651,1750311038218,-151.0,0.00023013,7]
[366537653,1750311038227,-460.0,0.00023013,6]
[366537655,1750311038237,-151.0,0.00023013,7]
[366537657,1750311038247,-516.41,0.00023013,6]
[366537659,1750311038256,-460.0,0.00023013,6]
[366537661,1750311038266,-460.0,0.00023013,6]
[366537663,1750311038276,-460.0,0.00023013,6]
[366537665,1750311038286,-2267.91,0.00023013,6]
[366537667,1750311038295,-460.0,0.00023013,6]
[366537669,1750311038305,-938.2,0.00023013,6]
[366537671,1750311038315,-460.0,0.00023013,6]
[366537673,1750311038324,-708.33,0.00023013,6]
[366537675,1750311038334,-460.0,0.00023013,6]
[366537677,1750311038343,-300.0,0.00023013,2]
[366537679,1750311038353,-474.26,0.00023013,6]
[366537681,1750311038363,-886.52,0.00023013,6]
[366537683,1750311038373,-427.33683898,0.00023013,6]
[366537685,1750311038383,-1383.36,0.00023013,6]
[366537687,1750311038392,-494.16948725,0.00023013,6]
[366537689,1750311038402,-460.0,0.00023013,6]
[366537691,1750311038411,-1500.0,0.00023068,2]
[366537693,1750311038421,-285.0,0.00023088,2]
[366537695,1750311038431,-223.73951611,0.00023106,13]
[366537697,1750311038441,-158.55143993,0.0002314,2]
[366537699,1750311038450,-642.36047434,0.00023148,2]
[366537701,1750311038459,-151.0,0.00023167,7]
[366537703,1750311038469,-679.0,0.00023184,2]
[366537705,1750311038479,-1238.59,0.00023198,2]
[366537707,1750311038488,-151.0,0.000232,6]
[366537709,1750311038499,-841.19,0.000232,7]
[366537711,1750311038508,-345.17380086,0.00023217,2]
[366537713,1750311038517,-153.0,0.00023239,2]
[366537715,1750311038528,-151.0,0.00023255,7]
[366537717,1750311038538,-151.0,0.00023255,7]
[366537719,1750311038547,-151.0,0.00023255,7]
[366537721,1750311038557,-642.838066,0.00023255,7]
[366537723,1750311038567,-642.838066,0.00023255,7]
[366537725,1750311038576,-525.66587,0.00023255,7]
[366537727,1750311038588,-525.66587,0.00023255,7]
[366537729,1750311038598,-675.4195887,0.0002326,2]
[366537731,1750311038607,-215.0738,0.00023284,2]
[366537733,1750311038616,-151.0,0.00023287,7]
[366537735,1750311038626,-262.515764,0.00023287,7]
[366537737,1750311038635,-151.0,0.00023287,7]
[366537739,1750311038644,-701.3,0.00023287,6]
[366537741,1750311038654,-151.0,0.00023287,7]
[366537743,1750311038663,-460.0,0.00023287,6]
[366537745,1750311038672,-507.93,0.00023287,6]
[366537747,1750311038682,-460.0,0.00023287,6]
[366537749,1750311038691,-1553.48,0.00023287,6]
[366537751,1750311038701,-460.0,0.00023287,6]
[366537753,1750311038710,-151.0,0.00023287,7]
[366537755,1750311038721,-764.87,0.00023287,6]
[366537757,1750311038730,-151.0,0.00023287,7]
[366537758,1750311038739,-151.0,0.00023287,7]
[366537761,1750311038752,-155.308713,0.00023287,7]
[366537763,1750311038763,-460.0,0.00023287,6]
[366537765,1750311038773,-3021.55,0.00023287,6]
[366537767,1750311038784,-546.21,0.00023287,6]
[366537769,1750311038795,-460.0,0.00023287,6]
[366537771,1750311038805,-696.87,0.00023287,6]
[366537773,1750311038815,-460.0,0.00023287,6]
[366537775,1750311038824,-719.96,0.00023287,6]
[366537777,1750311038834,-663.23,0.00023287,6]
[366537779,1750311038843,-2699.02,0.00023287,6]
[366537781,1750311038854,-460.0,0.00023287,6]
[366537783,1750311038863,-460.0,0.00023287,6]
[366537785,1750311038872,-512.79,0.00023287,6]
[366537787,1750311038882,-3451.43,0.00023287,6]
[366537789,1750311038891,-2682.75,0.00023287,6]
[366537791,1750311038900,-460.0,0.00023287,6]
[366537793,1750311038909,-460.0,0.00023287,6]
[366537795,1750311038919,-556.31,0.00023287,6]
[366537797,1750311038928,-573.25,0.00023287,6]
[366537798,1750311038937,-1794.42,0.00023287,6]
[366537800,1750311038947,-460.0,0.00023287,6]
[366537802,1750311038956,-3841.39,0.00023287,6]
[366537804,1750311038965,-2649.21,0.00023287,6]
[366537806,1750311038975,-150.81742448,0.00023287,6]
[366537808,1750311038986,-309.77177128,0.00023287,6]
[366537816,1750311039057,460.0,0.00021917,6]
[366537872,1750311039619,460.0,0.00021917,6]
[366537877,1750311039648,460.0,0.00021917,6]
[366537880,1750311039665,-500.0,0.0002219,2]
[366537882,1750311039674,-637.74119396,0.0002219,2]
[366537884,1750311039683,-500.0,0.0002219,2]
[366537886,1750311039693,-500.0,0.0002219,2]
[366537888,1750311039702,-233.68788085,0.0002219,2]
[366537890,1750311039714,-266.31211915,0.0002219,2]
[366537892,1750311039726,-500.0,0.0002219,2]
[366537894,1750311039736,-500.0,0.0002219,2]
[366537895,1750311039745,-209.5936156,0.0002219,2]
[366537896,1750311039757,-290.4063844,0.0002219,2]
[366537897,1750311039766,-500.0,0.0002219,2]
[366537898,1750311039776,-500.0,0.0002219,2]
[366537899,1750311039785,-500.0,0.0002219,2]
[366537900,1750311039795,-500.0,0.0002219,2]
[366537901,1750311039805,-500.0,0.0002219,2]
[366537902,1750311039815,-500.0,0.0002219,2]
[366537903,1750311039825,-500.0,0.0002219,2]
[366537904,1750311039834,-500.0,0.0002219,2]
[366537905,1750311039843,-500.0,0.0002219,2]
[366537906,1750311039853,-500.0,0.0002219,2]
[366537907,1750311039862,-500.0,0.0002219,2]
[366537908,1750311039871,-500.0,0.0002219,2]
[366537909,1750311039880,-500.0,0.0002219,2]
[366537910,1750311039890,-500.0,0.0002219,2]
[366537911,1750311039900,-500.0,0.0002219,2]
[366537912,1750311039909,-506.56577259,0.0002219,2]
[366537913,1750311039919,-460.0,0.0002219,6]
[366537914,1750311039928,-460.0,0.00022191,6]
[366537915,1750311039937,-222.89,0.00022191,6]
[366537916,1750311039947,-460.0,0.00022464,6]
[366537917,1750311039956,-460.0,0.00022465,6]
[366537918,1750311039966,-460.0,0.00022738,6]
[366537919,1750311039976,-460.0,0.00022739,6]
[366537920,1750311039985,-453.84000003,0.00023012,6]
[366537921,1750311039995,-460.0,0.00023013,6]
[366537922,1750311040004,-150.22822872,0.00023287,6]
[366537923,1750311040013,-880.96,0.00023287,6]
[366537924,1750311040023,-460.0,0.00023287,6]
[366537925,1750311040034,-924.06690537,0.00023287,6]
[366537926,1750311040207,-2130.50023155,0.00023287,6]
[366537927,1750311040219,-315.94286308,0.00023287,6]
[366537928,1750311040229,-221.11722362,0.00023287,6]
[366537929,1750311040240,-300.0,0.00023287,6]
[366538020,1750311041329,-250.0,0.00023287,6]
[366538022,1750311041341,-9.74277638,0.00023287,6]
[366538024,1750311041350,-624.25722362,0.00023287,6]
[366538035,1750311041446,460.0,0.00021917,6]
[366538048,1750311041566,2024.26,0.00021917,6]
[366538197,1750311043079,-420.976198,0.00022191,6]
[366538203,1750311043123,533.5,0.00021917,6]
[366538205,1750311043136,-1603.283802,0.00022191,6]
[366538207,1750311043145,-340.02139122,0.00022465,6]
[366538209,1750311043156,-633.48993125,0.00022465,6]
[366538728,1750311047933,-1050.74867753,0.00022465,6]
[366538730,1750311047943,-2024.26,0.00022739,6]
[366538732,1750311047953,-2024.26,0.00023013,6]
[366538734,1750311047963,-1506.17,0.00023277,10]
[366538736,1750311047972,-442.49277638,0.00023287,6]
[366538738,1750311047982,-5142.92,0.00023287,6]
[366538740,1750311047992,-466.44,0.00023287,6]
[366538742,1750311048001,-443.55345392,0.00023287,6]
[366538744,1750311048011,-460.0,0.00023287,6]
[366538746,1750311048020,-460.0,0.00023287,6]
[366538748,1750311048030,-1327.37,0.00023287,6]
[366538750,1750311048040,-545.54,0.00023287,6]
[366538752,1750311048050,-841.97,0.00023287,6]
[366538754,1750311048059,-460.0,0.00023287,6]
[366538756,1750311048068,-460.0,0.00023287,6]
[366538758,1750311048078,-460.0,0.00023287,6]
[366538760,1750311048087,-1500.64,0.00023287,6]
[366538773,1750311048211,-472.8,0.00023287,6]
[366538775,1750311048221,-1570.55,0.00023287,6]
[366538777,1750311048231,-1390.25,0.00023287,6]
[366538779,1750311048240,-460.0,0.00023287,6]
[366538781,1750311048250,-516.41,0.00023287,6]
[366538783,1750311048259,-460.0,0.00023287,6]
[366538785,1750311048269,-460.0,0.00023287,6]
[366538787,1750311048278,-460.0,0.00023287,6]
[366538789,1750311048289,-2267.91,0.00023287,6]
[366538791,1750311048298,-460.0,0.00023287,6]
[366538793,1750311048308,-938.2,0.00023287,6]
[366538795,1750311048318,-460.0,0.00023287,6]
[366538797,1750311048329,-708.33,0.00023287,6]
[366538799,1750311048338,-460.0,0.00023287,6]
[366538801,1750311048348,-300.0,0.00023287,2]
[366538802,1750311048358,-474.26,0.00023287,6]
[366538804,1750311048369,-886.52,0.00023287,6]
[366538806,1750311048379,-1383.36,0.00023287,6]
[366538808,1750311048389,-486.9047697,0.00023287,6]
[366538810,1750311048399,-460.0,0.00023287,6]
[366538812,1750311048410,-2024.26,0.00023287,6]
[366538814,1750311048420,-160.0,0.000233,4]
[366538816,1750311048429,-160.0,0.000233,4]
[366538818,1750311048439,-160.0,0.000233,4]
[366538820,1750311048448,-151.0,0.000233,6]
[366538822,1750311048458,-160.0,0.000233,5]
[366538824,1750311048467,-160.0,0.000233,5]
[366538826,1750311048476,-31293.59809184,0.00023334,2]
[366538828,1750311048486,-5973.16251558,0.00023334,2]
[366538863,1750311048854,460.0,0.00021917,6]
[366538876,1750311048982,-533.5,0.00022191,6]
[366538878,1750311048991,-286.15,0.00022191,6]
[366538880,1750311049001,-533.5,0.00022465,6]
[366538882,1750311049010,-48.31316556,0.00022739,6]
[366538885,1750311049027,-485.18683444,0.00022739,6]
[366538887,1750311049037,-14.81316556,0.00023013,6]
[366538889,1750311049048,-304.71651119,0.00023013,6]
[366538891,1750311049060,-213.97032325,0.00023013,6]
[366538893,1750311049070,-533.5,0.00023287,6]
[366538895,1750311049079,-2641.63859708,0.00023334,2]
[366538900,1750311049119,-3139.90919649,0.00023334,2]
[366538903,1750311049134,-31703.52023994,0.00023334,2]
[366538912,1750311049329,151.26,0.0001987,2]
[366538913,1750311049369,302.52,0.00020816,2]
[366538932,1750311049716,453.77,0.00021762,2]
[366538959,1750311049976,460.0,0.00021917,6]
[366539251,1750311052857,460.0,0.00021917,6]
[366539286,1750311053181,2012.07,0.00021917,6]
[366539442,1750311054895,430.0,0.00021917,6]
[366539458,1750311055054,460.0,0.00021917,6]
[366539568,1750311056147,1345.82,0.00021917,6]
[366539826,1750311059115,460.0,0.00021917,6]
[366539924,1750311060070,430.0,0.00021917,6]
[366540275,1750311063582,460.0,0.00021917,6]
[366540367,1750311064540,445.82414822,0.00021917,6]
[366540540,1750311066588,460.0,0.00021917,6]
[366540663,1750311067806,460.0,0.00021917,6]
[366542304,1750311760880,684.64126395,0.000191,2]
[366542305,1750311877221,961.76,0.00025187,120]
[366542350,1750312232211,-208.52,0.00019642,2]
[366542352,1750312232221,-233.041975,0.00019833,2]
[366542354,1750312232230,-417.04,0.00020578,2]
[366542356,1750312232241,-300.0,0.00020759,2]
[366542358,1750312232251,-500.0,0.0002076,2]
[366542359,1750312232261,-500.0,0.0002076,2]
[366542362,1750312232270,-500.0,0.0002076,2]
[366542364,1750312232280,-500.0,0.0002076,2]
[366542366,1750312232290,-500.0,0.0002076,2]
[366542367,1750312232300,-500.0,0.0002076,2]
[366542369,1750312232310,-500.0,0.0002076,2]
[366542371,1750312232321,-500.0,0.0002076,2]
[366542373,1750312232331,-602.62161735,0.0002076,2]
[366542375,1750312232340,-500.0,0.0002076,2]
[366542377,1750312232349,-500.0,0.0002076,2]
[366542379,1750312232358,-500.0,0.0002076,2]
[366542381,1750312232367,-500.0,0.0002076,2]
[366542383,1750312232376,-500.0,0.0002076,2]
[366542385,1750312232385,-500.0,0.0002076,2]
[366542387,1750312232394,-189.676,0.00020761,2]
[366542389,1750312232404,-300.0,0.00020761,2]
[366542392,1750312232413,-24900.0,0.00020762,2]
[366542396,1750312232422,-500.0,0.00021164,2]
[366542400,1750312232431,-625.55,0.00021513,2]
[366542403,1750312232441,-247.75963647,0.0002181,5]
[366542406,1750312232450,-1255.14,0.00021907,10]
[366542408,1750312232460,-207.4,0.00021915,2]
[366542410,1750312232469,-500.0,0.00021916,2]
[366542412,1750312232478,-500.0,0.00021916,2]
[366542414,1750312232487,-500.0,0.00021916,2]
[366542416,1750312232496,-500.0,0.00021916,2]
[366542418,1750312232505,-500.0,0.00021916,2]
[366542420,1750312232514,-500.0,0.00021916,2]
[366542422,1750312232524,-646.41883577,0.00021916,2]
[366542423,1750312232534,-500.0,0.00021916,2]
[366542425,1750312232543,-500.0,0.00021916,2]
[366542427,1750312232552,-500.0,0.00021916,2]
[366542429,1750312232561,-500.0,0.00021916,2]
[366542430,1750312232571,-500.0,0.00021916,2]
[366542432,1750312232580,-500.0,0.00021916,2]
[366542434,1750312232590,-250.0,0.00021916,2]
[366542436,1750312232599,-500.0,0.00021916,2]
[366542438,1750312232609,-500.0,0.00021916,2]
[366542440,1750312232618,-500.0,0.00021916,2]
[366542442,1750312232627,-500.0,0.00021916,2]
[366542444,1750312232637,-502.27082715,0.00021916,2]
[366542446,1750312232646,-524.44528285,0.00021917,6]
[366542448,1750312232656,-392.06314082,0.00021917,6]
[366542449,1750312232665,-254.60910511,0.00021917,6]
[366542451,1750312232675,-321.84768457,0.00021917,6]
[366542453,1750312232685,-460.0,0.00021917,6]
[366542455,1750312232695,-430.0,0.00021917,6]
[366542457,1750312232705,-460.0,0.00021917,6]
[366542459,1750312232714,-430.0,0.00021917,6]
[366542461,1750312232723,-430.0,0.00021917,6]
[366542463,1750312232732,-460.0,0.00021917,6]
[366542465,1750312232742,-440.0,0.00021917,6]
[366542467,1750312232751,-460.0,0.00021917,6]
[366542469,1750312232761,-182.72036556,0.00021917,6]
[366542471,1750312232771,-430.0,0.00021917,6]
[366542473,1750312232781,-231.58930105,0.00021917,6]
[366542475,1750312232791,-460.0,0.00021917,6]
[366542477,1750312232801,-460.0,0.00021917,6]
[366542480,1750312232811,-425.69320663,0.00021917,6]
[366542482,1750312232821,-460.0,0.00021917,6]
[366542484,1750312232830,-170.80552542,0.00021917,6]
[366542486,1750312232839,-689.04,0.00021917,6]
[366542488,1750312232849,-504.87557463,0.00021917,6]
[366542489,1750312232858,-460.0,0.00021917,6]
[366542490,1750312232867,-460.0,0.00021917,6]
[366542491,1750312232877,-460.0,0.00021917,6]
[366542492,1750312232886,-560.01647058,0.00021917,6]
[366542493,1750312232896,-440.0,0.00021917,6]
[366542494,1750312232905,-461.27749013,0.00021917,6]
[366542495,1750312232914,-504.15887617,0.00021917,6]
[366542496,1750312232924,-295.19693677,0.00021917,6]
[366542497,1750312232933,-460.0,0.00021917,6]
[366542498,1750312232944,-460.0,0.00021917,6]
[366542499,1750312232953,-465.39677554,0.00021917,6]
[366542500,1750312232962,-460.0,0.00021917,6]
[366542501,1750312232972,-452.24656411,0.00021917,6]
[366542502,1750312232981,-460.0,0.00021917,6]
[366542504,1750312232990,-460.0,0.00021917,6]
[366542505,1750312233000,-460.0,0.00021917,6]
[366542507,1750312233010,-460.0,0.00021917,6]
[366542509,1750312233019,-460.0,0.00021917,6]
[366542511,1750312233028,-460.0,0.00021917,6]
[366542513,1750312233038,-444.78139562,0.00021917,6]
[366542515,1750312233048,-460.0,0.00021917,6]
[366542517,1750312233057,-180.88067471,0.00021917,6]
[366542519,1750312233066,-460.0,0.00021917,6]
[366542521,1750312233076,-332.48860349,0.00021917,6]
[366542523,1750312233085,-460.0,0.00021917,6]
[366542525,1750312233095,-460.0,0.00021917,6]
[366542527,1750312233105,-460.0,0.00021917,6]
[366542529,1750312233114,-460.0,0.00021917,6]
[366542531,1750312233124,-460.0,0.00021917,6]
[366542532,1750312233133,-607.13,0.00021917,6]
[366542535,1750312233143,-460.0,0.00021917,6]
[366542537,1750312233153,-430.0,0.00021917,6]
[366542539,1750312233162,-460.0,0.00021917,6]
[366542540,1750312233172,-460.0,0.00021917,6]
[366542543,1750312233182,-571.32,0.00021917,6]
[366542545,1750312233192,-430.0,0.00021917,6]
[366542547,1750312233202,-430.0,0.00021917,6]
[366542549,1750312233212,-440.0,0.00021917,6]
[366542551,1750312233221,-430.0,0.00021917,6]
[366542553,1750312233231,-460.0,0.00021917,6]
[366542554,1750312233243,-460.0,0.00021917,6]
[366542556,1750312233252,-1647.06,0.00021917,6]
[366542558,1750312233261,-440.0,0.00021917,6]
[366542560,1750312233271,-460.0,0.00021917,6]
[366542562,1750312233282,-460.0,0.00021917,6]
[366542564,1750312233291,-460.0,0.00021917,6]
[366542566,1750312233301,-430.0,0.00021917,6]
[366542568,1750312233310,-433.72323076,0.00021917,6]
[366542570,1750312233322,-245.58447487,0.00021917,6]
[366542572,1750312233331,-430.0,0.00021917,6]
[366542575,1750312233341,-460.0,0.00021917,6]
[366542576,1750312233351,-460.0,0.00021917,6]
[366542579,1750312233361,-460.0,0.00021917,6]
[366542580,1750312233370,-460.0,0.00021917,6]
[366542583,1750312233379,-460.0,0.00021917,6]
[366542584,1750312233388,-460.0,0.00021917,6]
[366542587,1750312233398,-440.0,0.00021917,6]
[366542588,1750312233407,-796.26,0.00021917,6]
[366542590,1750312233417,-440.0,0.00021917,6]
[366542592,1750312233427,-460.0,0.00021917,6]
[366542594,1750312233436,-460.0,0.00021917,6]
[366542597,1750312233447,-460.0,0.00021917,6]
[366542598,1750312233456,-430.0,0.00021917,6]
[366542601,1750312233466,-440.0,0.00021917,6]
[366542603,1750312233476,-430.0,0.00021917,6]
[366542605,1750312233486,-445.58719657,0.00021917,6]
[366542607,1750312233495,-440.0,0.00021917,6]
[366542609,1750312233505,-460.0,0.00021917,6]
[366542611,1750312233514,-460.0,0.00021917,6]
[366542613,1750312233524,-460.0,0.00021917,6]
[366542615,1750312233533,-460.0,0.00021917,6]
[366542617,1750312233543,-460.0,0.00021917,6]
[366542618,1750312233552,-470.0,0.00021917,6]
[366542620,1750312233562,-220.27304225,0.00021917,6]
[366542622,1750312233571,-249.88320416,0.00021917,6]
[366542624,1750312233581,-490.0,0.00021917,6]
[366542626,1750312233591,-460.0,0.00021917,6]
[366542628,1750312233600,-460.0,0.00021917,6]
[366542630,1750312233610,-460.0,0.00021917,6]
[366542632,1750312233620,-440.0,0.00021917,6]
[366542634,1750312233630,-460.0,0.00021917,6]
[366542636,1750312233639,-460.0,0.00021917,6]
[366542638,1750312233651,-423.05621651,0.00021917,6]
[366542640,1750312233660,-430.0,0.00021917,6]
[366542642,1750312233670,-516.89772163,0.00021917,6]
[366542644,1750312233679,-460.0,0.00021917,6]
[366542646,1750312233689,-460.0,0.00021917,6]
[366542648,1750312233698,-436.91338198,0.00021917,6]
[366542650,1750312233708,-590.91555071,0.00021917,6]
[366542652,1750312233717,-460.0,0.00021917,6]
[366542654,1750312233727,-460.0,0.00021917,6]
[366542656,1750312233736,-344.28995489,0.00021917,6]
[366542658,1750312233745,-460.0,0.00021917,6]
[366542660,1750312233755,-460.0,0.00021917,6]
[366542662,1750312233765,-460.0,0.00021917,6]
[366542664,1750312233775,-440.0,0.00021917,6]
[366542666,1750312233784,-460.0,0.00021917,6]
[366542669,1750312233794,-460.0,0.00021917,6]
[366542670,1750312233803,-460.0,0.00021917,6]
[366542672,1750312233813,-460.0,0.00021917,6]
[366542674,1750312233822,-460.0,0.00021917,6]
[366542676,1750312233832,-460.0,0.00021917,6]
[366542677,1750312233842,-460.0,0.00021917,6]